bitfinex/quotes_ETHUSD_20260310
["timestamp","ask_amount","ask_price","bid_price","bid_amount"]
[1773174185421,1.73851895,2043.7,2043.5,0.0011]
[1773174187320,1.22331893,2043.7,2043.5,0.49286074]
[1773174188111,1.73851895,2043.7,2043.3,1.6081008]
[1773174188549,1.73851895,2043.7,2043.4,0.1900008]
[1773174193732,1.22331893,2043.7,2043.4,0.1900008]
[1773174194958,1.73851895,2043.7,2043.4,0.1900008]
[1773174195300,0.51520002,2043.6,2043.3,1.4181]
[1773174195630,0.51520002,2043.6,2043.3,1.72066325]
[1773174195811,0.51520002,2043.7,2043.3,1.72066325]
[1773174196342,0.51520002,2043.7,2043.0,0.0011]
[1773174196638,0.51520002,2043.3,2043.0,0.0011]
[1773174197313,0.51520002,2043.3,2043.1,0.0011]
[1773174197512,0.51520002,2043.3,2043.0,0.0011]
[1773174197513,0.51520002,2043.1,2042.4,0.0011]
[1773174197736,0.51520002,2042.8,2042.4,0.0011]
[1773174197929,1.73907038,2042.7,2042.5,1.414]
[1773174198908,1.22387036,2042.7,2042.5,1.414]
[1773174199703,1.22387036,2042.7,2042.4,0.33170445]
[1773174200016,1.22387036,2042.7,2042.5,1.414]
[1773174201543,0.48387861,2043.0,2042.6,0.32668265]
[1773174201836,0.48387861,2043.3,2042.8,0.32472965]
[1773174204235,1.22357086,2043.2,2042.8,1.54851974]
[1773174204438,1.22357086,2043.2,2042.8,0.32472965]
[1773174204735,1.70744947,2043.2,2042.9,1.414]
[1773174204940,0.48387861,2043.2,2042.9,1.73290203]
[1773174207224,1.70746197,2043.2,2042.9,1.73290203]
[1773174210243,0.001,2043.0,2042.9,1.73290203]
[1773174212529,0.001,2043.0,2042.9,2.95665258]
[1773174212730,1.70736487,2043.4,2043.0,0.30258907]
[1773174213326,0.48387861,2043.4,2043.0,0.30258907]
[1773174213512,0.48487861,2043.5,2043.0,0.30258907]
[1773174213827,1.70827258,2043.5,2043.0,0.30258907]
[1773174214218,0.48387861,2043.4,2043.0,0.30258907]
[1773174214651,0.48387861,2043.4,2043.1,1.22363075]
[1773174214825,0.48387861,2043.4,2043.1,1.52247154]
[1773174215443,0.48487861,2043.5,2043.1,1.52247154]
[1773174215653,1.70828257,2043.5,2043.2,0.29695965]
[1773174216126,0.48487861,2043.5,2043.3,1.414]
[1773174216644,0.001,2043.5,2043.3,1.70908353]
[1773174216849,0.001,2043.5,2043.3,2.93258909]
[1773174217350,0.001,2043.5,2043.3,1.70908353]
[1773174218533,0.001,2043.5,2043.3,2.93258954]
[1773174221570,0.001,2043.5,2043.3,1.70908353]
[1773174222068,0.001,2043.5,2043.3,2.93258533]
[1773174224056,0.001,2043.5,2043.3,2.6375018]
[1773174224370,0.001,2043.5,2043.3,2.91959169]
[1773174224768,0.48387861,2043.8,2043.4,0.28025336]
[1773174224946,1.70701053,2044.0,2043.4,0.28025336]
[1773174227501,0.48387861,2044.0,2043.6,0.27562391]
[1773174228280,0.48387861,2044.0,2043.7,1.416]
[1773174229294,0.48387861,2044.0,2043.7,1.68617239]
[1773174230291,0.48539598,2044.2,2043.9,0.27017239]
[1773174230591,0.48539598,2044.4,2043.8,1.22321166]
[1773174230791,0.48539598,2044.4,2043.9,0.26836485]
[1773174231366,0.48539598,2044.6,2044.0,0.26836485]
[1773174231567,0.32953086,2045.1,2044.4,0.26791468]
[1773174231768,0.48539598,2045.2,2044.6,0.46990592]
[1773174232175,1.22219506,2045.5,2043.9,0.46990592]
[1773174232176,0.48539598,2045.0,2043.9,0.46990592]
[1773174232364,0.48539598,2044.2,2043.8,0.46990592]
[1773174232564,5.30898377,2045.0,2043.8,0.46990592]
[1773174232565,0.48539598,2044.7,2043.8,0.46990592]
[1773174232783,0.48539598,2044.7,2043.7,3.59719212]
[1773174232784,1.70808513,2044.7,2044.0,0.46990592]
[1773174233164,0.48539598,2044.6,2044.0,0.46990592]
[1773174233981,0.48539598,2044.6,2044.1,1.88690592]
[1773174234183,1.22268915,2044.7,2044.2,0.46990592]
[1773174234389,1.22260052,2044.9,2044.4,0.46990592]
[1773174234965,0.48539598,2045.0,2044.4,0.46990592]
[1773174235596,0.48539598,2045.0,2044.3,2.18087471]
[1773174235597,0.48539598,2045.0,2044.8,0.46990592]
[1773174235795,0.48539598,2045.0,2044.9,1.88790592]
[1773174235965,1.2224048,2045.2,2044.9,1.88790592]
[1773174236161,1.2224048,2045.2,2044.9,0.46990592]
[1773174236371,1.70783009,2045.1,2045.0,1.418]
[1773174237073,1.70783009,2045.1,2044.7,1.69257547]
[1773174237273,0.48539598,2045.1,2044.8,1.418]
[1773174237512,0.48539598,2045.1,2043.7,0.47100592]
[1773174237710,1.22242197,2045.2,2043.9,0.46990592]
[1773174237711,0.48539598,2044.6,2043.9,0.46990592]
[1773174238201,0.48539598,2044.6,2043.9,0.43900592]
[1773174238396,1.22279285,2044.5,2043.9,0.43900592]
[1773174238809,1.70818883,2044.5,2043.9,0.43900592]
[1773174238984,1.70818883,2044.5,2044.0,1.408]
[1773174239299,0.48539598,2044.4,2044.0,1.408]
[1773174239770,0.48539598,2044.4,2043.7,0.47100592]
[1773174239975,0.48539598,2044.4,2043.9,0.46990592]
[1773174240193,1.22279285,2044.5,2043.9,0.46990592]
[1773174240785,1.70818883,2044.5,2043.9,0.46990592]
[1773174241883,0.48539598,2044.4,2043.8,1.69311602]
[1773174242088,0.48539598,2044.4,2043.9,1.412]
[1773174242926,0.48539598,2044.4,2043.9,0.46990592]
[1773174242927,1.22291248,2044.3,2043.9,0.46990592]
[1773174243068,0.48539598,2044.2,2043.9,1.413]
[1773174243275,0.48539598,2044.2,2044.0,1.413]
[1773174244100,0.48539598,2044.2,2043.7,1.69427101]
[1773174244296,0.48539598,2044.2,2043.8,1.414]
[1773174244881,1.22303214,2044.1,2043.8,1.414]
[1773174245481,1.70842812,2044.1,2043.7,0.0011]
[1773174245724,1.70842812,2044.1,2043.8,1.415]
[1773174247300,1.70844236,2044.1,2043.8,1.415]
[1773174248607,0.001,2044.0,2043.8,1.415]
[1773174249414,0.001,2044.0,2043.9,0.0011]
[1773174250189,0.48639598,2044.0,2043.9,0.0011]
[1773174250516,0.001,2044.0,2043.9,1.4181]
[1773174253118,0.48639598,2044.0,2043.9,1.417]
[1773174253317,0.48639598,2044.0,2043.8,1.417]
[1773174253623,1.70953592,2044.0,2043.8,1.417]
[1773174254825,1.70953592,2044.0,2043.6,0.0011]
[1773174254826,0.48539598,2043.9,2043.6,0.0011]
[1773174254992,0.48539598,2043.9,2043.5,0.0011]
[1773174255719,1.70860764,2043.8,2043.5,0.0011]
[1773174256019,0.48539598,2043.8,2043.5,0.0011]
[1773174257030,0.48539598,2043.8,2043.5,1.4181]
[1773174257329,1.70954056,2044.0,2043.6,0.46990592]
[1773174257520,0.001,2044.0,2043.7,0.46990592]
[1773174257910,1.22286065,2044.4,2043.7,0.46990592]
[1773174258228,0.48639598,2044.3,2043.7,0.46990592]
[1773174258404,0.48639598,2044.3,2043.6,1.22330044]
[1773174258405,0.48639598,2044.3,2043.8,1.417]
[1773174258600,0.48539598,2044.1,2043.8,1.417]
[1773174259207,0.001,2044.1,2043.8,1.88690592]
[1773174259622,1.22297231,2044.2,2043.8,3.1101086]
[1773174259822,1.22397231,2044.2,2043.8,3.1101086]
[1773174260927,1.22397231,2044.2,2043.8,0.46990592]
[1773174261130,1.22397231,2044.2,2043.9,1.417]
[1773174261328,1.8050868,2044.2,2043.9,1.417]
[1773174262580,1.8050868,2044.2,2044.0,0.0011]
[1773174263539,0.58111449,2044.1,2043.8,0.0011]
[1773174264635,1.80420646,2044.0,2043.8,0.0011]
[1773174266524,0.58111449,2043.8,2043.5,1.4181]
[1773174266733,0.58111449,2043.7,2043.5,1.4181]
[1773174266933,0.23243938,2043.9,2043.5,1.4181]
[1773174267133,1.22321166,2044.0,2043.5,2.01122165]
[1773174267342,1.22321166,2044.0,2043.6,0.59312165]
[1773174267909,1.43933131,2044.0,2043.6,0.59312165]
[1773174268113,1.43933131,2044.0,2043.5,0.0011]
[1773174268438,0.21611965,2043.9,2043.5,0.0011]
[1773174268645,1.22321166,2043.8,2043.5,0.0011]
[1773174272130,1.22321166,2043.8,2043.5,0.59422165]
[1773174275331,1.22321166,2043.8,2043.7,0.0011]
[1773174276737,1.41436953,2043.8,2043.7,0.0011]
[1773174277248,1.22321166,2043.8,2043.7,0.0011]
[1773174277452,1.41534972,2043.9,2043.7,0.0011]
[1773174278033,1.22419117,2043.9,2043.7,0.59422165]
[1773174278236,0.001,2043.9,2043.7,0.59422165]
[1773174279464,0.18669519,2044.3,2043.8,0.59262165]
[1773174279637,0.44787614,2044.2,2043.8,0.59262165]
[1773174279839,0.44787614,2044.1,2043.8,0.59262165]
[1773174280138,0.44787614,2044.0,2043.8,0.59262165]
[1773174280440,0.18669519,2044.3,2043.8,0.59262165]
[1773174280656,0.44792041,2044.2,2043.8,0.59262165]
[1773174280837,0.44792041,2044.1,2043.8,0.59262165]
[1773174281168,0.44792041,2044.0,2043.8,0.59262165]
[1773174281466,0.18669519,2044.3,2043.8,0.59262165]
[1773174281665,1.22303214,2044.1,2043.8,0.59262165]
[1773174281859,0.44794994,2044.0,2043.8,0.59262165]
[1773174282164,1.22303214,2044.1,2043.8,0.59262165]
[1773174282466,0.44798121,2044.0,2043.8,0.59262165]
[1773174282666,1.22303214,2044.1,2043.8,0.59262165]
[1773174282852,0.44798121,2044.0,2043.8,0.59262165]
[1773174283063,1.22303214,2044.1,2043.8,0.59262165]
[1773174283366,0.44798121,2044.0,2043.8,0.59262165]
[1773174283566,1.22303214,2044.1,2043.8,0.59262165]
[1773174283748,0.09507429,2043.9,2043.7,0.0011]
[1773174283948,0.44799041,2043.8,2043.7,0.0011]
[1773174284446,0.09507429,2043.7,2043.5,0.0011]
[1773174284764,0.09129171,2043.5,2042.7,2.04533415]
[1773174284966,2.84234044,2043.6,2042.7,2.04533415]
[1773174284967,0.09129171,2043.3,2042.7,2.04533415]
[1773174285187,0.53928212,2043.2,2042.7,2.04533415]
[1773174285347,0.44799041,2043.1,2042.8,1.404]
[1773174285971,1.67162116,2043.1,2042.8,1.404]
[1773174286171,0.44799041,2043.1,2042.9,0.63223415]
[1773174286375,1.22361466,2043.2,2042.9,0.63223415]
[1773174287580,0.08338382,2043.6,2043.0,0.67419083]
[1773174287780,0.4471651,2043.5,2043.0,0.67419083]
[1773174287983,1.67066614,2043.4,2043.0,0.67419083]
[1773174288153,1.22350104,2043.4,2043.0,0.67419083]
[1773174288764,1.22350104,2043.4,2043.0,1.89787492]
[1773174290069,4.89369258,2043.5,2043.1,0.74787308]
[1773174290268,0.44705271,2043.4,2043.1,0.74787308]
[1773174290468,4.89369258,2043.5,2043.1,0.74787308]
[1773174290669,1.2233363,2043.6,2043.1,0.74787308]
[1773174290858,0.44702808,2043.5,2043.1,0.74787308]
[1773174291056,1.2233363,2043.6,2043.1,0.74787308]
[1773174291286,0.44702808,2043.5,2043.1,0.74787308]
[1773174291579,1.2233363,2043.6,2043.1,0.74787308]
[1773174291789,0.44705394,2043.5,2043.1,0.74787308]
[1773174291970,0.001,2043.7,2043.1,0.74787308]
[1773174292171,0.44705394,2043.6,2043.1,0.74787308]
[1773174292486,0.44705394,2043.5,2043.2,0.74787308]
[1773174292708,0.001,2043.7,2043.2,0.74787308]
[1773174292868,0.44709244,2043.6,2043.2,0.74787308]
[1773174293066,0.001,2043.7,2043.2,0.74787308]
[1773174296102,0.001,2043.7,2043.4,0.74787308]
[1773174298302,0.001,2043.7,2043.4,1.97132247]
[1773174298606,0.24075696,2044.4,2043.6,0.74787308]
[1773174300422,0.23774434,2044.2,2043.6,0.74787308]
[1773174303607,0.2256622,2044.1,2043.6,0.74787308]
[1773174306620,0.2256622,2044.1,2043.7,0.74787308]
[1773174306808,0.21668886,2044.3,2043.7,0.74787308]
[1773174307204,0.21668886,2043.7,2043.3,0.74787308]
[1773174307518,8.61992649,2044.2,2043.0,0.0011]
[1773174307519,0.21668886,2043.3,2043.0,0.0011]
[1773174307909,0.21371442,2043.5,2043.1,0.74787308]
[1773174311749,0.20193104,2043.3,2042.7,0.0011]
[1773174312046,0.20193104,2043.3,2042.7,0.74897308]
[1773174312244,0.20083104,2043.5,2042.7,0.74897308]
[1773174313236,0.20083104,2043.5,2043.3,0.0011]
[1773174314348,0.19500444,2043.7,2043.3,0.0011]
[1773174315533,0.19500444,2043.7,2043.3,0.74897308]
[1773174315763,2.24798949,2043.9,2043.3,0.74897308]
[1773174315967,2.24798949,2043.9,2043.3,1.9724756]
[1773174316665,2.24798949,2043.9,2043.3,0.74897308]
[1773174316666,0.18627744,2043.8,2043.3,0.74897308]
[1773174316865,0.18627744,2043.8,2043.3,1.97247926]
[1773174317841,0.18627744,2043.8,2043.3,1.97248309]
[1773174318671,0.18627744,2043.8,2043.3,0.74897308]
[1773174319046,0.18627744,2043.8,2043.3,1.97248099]
[1773174319246,0.17762297,2043.8,2043.3,0.74897308]
[1773174319466,0.17762297,2043.8,2043.3,1.97247748]
[1773174320254,0.17762297,2043.8,2043.4,0.66857371]
[1773174321270,0.001,2043.9,2043.4,0.66857371]
[1773174322145,0.1728933,2043.9,2043.4,0.66857371]
[1773174324480,0.16619536,2043.8,2043.4,0.66857371]
[1773174326499,0.001,2043.9,2043.5,0.66857371]
[1773174327764,0.001,2043.7,2043.5,0.66857371]
[1773174332394,0.001,2043.7,2043.6,0.66857371]
[1773174335583,0.001,2043.7,2043.4,0.66857371]
[1773174336108,0.001,2043.7,2043.4,1.89198195]
[1773174336278,0.001,2043.7,2043.5,0.66857371]
[1773174337707,0.12991872,2044.1,2043.6,0.66857371]
[1773174339486,0.06573896,2044.0,2043.6,0.66857371]
[1773174340712,0.001,2043.9,2043.6,0.66857371]
[1773174340887,0.001,2043.9,2043.7,0.66857371]
[1773174345621,0.001,2043.9,2043.6,0.66857371]
[1773174345792,0.001,2043.9,2043.7,0.66857371]
[1773174350535,0.001,2043.9,2043.7,1.89183984]
[1773174350841,0.001,2043.9,2043.8,0.6177623]
[1773174354859,0.42136012,2044.2,2043.8,1.84097396]
[1773174355221,0.42136012,2044.2,2043.8,0.6177623]
[1773174359430,0.48045738,2044.1,2043.7,0.0011]
[1773174359638,0.47678101,2044.0,2043.4,1.84230314]
[1773174360141,0.47678101,2044.0,2043.5,0.6177623]
[1773174363945,0.57705725,2043.9,2043.5,0.6177623]
[1773174365268,0.57705725,2043.9,2043.7,0.0011]
[1773174369972,0.56191207,2044.3,2043.7,0.6188623]
[1773174370174,0.56191207,2044.3,2043.8,0.6177623]
[1773174370754,0.55941188,2044.6,2044.0,0.6177623]
[1773174373381,0.5544319,2044.6,2044.1,0.6177623]
[1773174375862,0.95806122,2044.4,2043.7,1.8420909]
[1773174376164,0.54701259,2044.3,2043.8,0.6177623]
[1773174377051,0.54455291,2044.5,2043.8,0.6177623]
[1773174377857,0.001,2044.4,2044.0,0.6177623]
[1773174378056,0.5430999,2044.4,2044.0,0.6177623]
[1773174379390,0.001,2044.4,2044.0,0.6177623]
[1773174379681,0.53721385,2044.7,2044.1,0.61209991]
[1773174380060,0.53721385,2044.7,2044.3,0.61209991]
[1773174384690,0.53721385,2044.7,2044.4,0.61209991]
[1773174386082,0.53721385,2044.7,2044.0,0.61209991]
[1773174386287,0.52274247,2044.6,2044.0,0.61209991]
[1773174386457,0.52274247,2044.6,2044.1,1.83513205]
[1773174386857,0.52274247,2044.6,2044.1,1.22303214]
[1773174387053,0.52274247,2044.6,2044.2,0.61209991]
[1773174389463,0.52274247,2044.6,2044.2,1.83503824]
[1773174389662,0.52274247,2044.6,2044.3,0.61209991]
[1773174390505,0.001,2044.4,2044.3,0.61209991]
[1773174391002,0.51183743,2044.4,2044.2,0.0011]
[1773174405888,0.51183743,2044.4,2044.2,8.105e-05]
[1773174407505,0.47383259,2044.7,2044.2,8.105e-05]
[1773174409721,0.47383259,2044.7,2044.2,0.59328073]
[1773174410208,0.47383259,2044.7,2044.0,0.0011]
[1773174410209,0.46709307,2044.5,2044.0,0.0011]
[1773174411674,0.46261308,2044.3,2044.0,0.0011]
[1773174412858,0.46261308,2044.3,2044.0,0.59429968]
[1773174416838,1.70561955,2045.2,2044.3,0.59319968]
[1773174416989,1.70561955,2045.2,2044.0,0.0011]
[1773174416990,0.48324522,2044.8,2044.0,0.0011]
[1773174417321,0.55411366,2044.4,2044.0,0.59429968]
[1773174417540,0.55411366,2044.4,2044.2,0.0011]
[1773174417690,0.55411366,2044.4,2044.0,0.0011]
[1773174418594,0.55411366,2044.4,2044.0,0.59429968]
[1773174419316,1.22291248,2044.3,2044.0,0.59429968]
[1773174419513,1.77702614,2044.3,2044.0,0.59429968]
[1773174420419,1.77702614,2044.3,2044.0,0.0011]
[1773174420928,0.55411366,2044.0,2043.7,0.0011]
[1773174421425,0.55411366,2044.0,2043.7,0.59429968]
[1773174422423,1.77720664,2044.0,2043.7,0.59429968]
[1773174422721,0.55411366,2044.0,2043.7,0.59429968]
[1773174422927,1.77721668,2044.0,2043.7,0.59429968]
[1773174426603,0.46247521,2043.9,2043.5,0.0011]
[1773174427119,0.46247521,2043.9,2043.5,0.59429968]
[1773174427321,0.46247521,2043.9,2043.6,0.59319968]
[1773174429008,1.68567811,2043.9,2043.6,0.59319968]
[1773174429717,1.68567811,2043.9,2043.8,0.0011]
[1773174431541,0.4539618,2044.2,2043.8,0.59429968]
[1773174432110,0.4539618,2044.2,2043.8,0.0011]
[1773174435054,1.22303214,2044.1,2043.8,0.0011]
[1773174435214,0.48087591,2044.0,2043.8,0.0011]
[1773174437147,1.69965548,2043.9,2043.8,0.0011]
[1773174438519,1.71909761,2044.0,2043.8,0.0011]
[1773174438837,1.71898355,2044.2,2043.8,0.59429968]
[1773174442160,1.71898355,2044.2,2044.0,0.0011]
[1773174442346,1.71898355,2044.2,2044.0,7.067e-05]
[1773174443353,1.71898355,2044.2,2043.8,0.59429968]
[1773174447236,1.71898355,2044.2,2043.6,0.54717097]
[1773174447237,0.5517414,2044.0,2043.6,0.54717097]
[1773174448570,1.22300697,2044.2,2043.6,0.54717097]
[1773174448939,1.77474837,2044.2,2043.6,0.54717097]
[1773174449370,1.77474837,2044.2,2043.7,0.54717097]
[1773174450852,1.22300697,2044.2,2043.7,0.54717097]
[1773174451256,3.19867325,2044.3,2043.7,0.54717097]
[1773174451441,3.19867325,2044.3,2043.9,0.54717097]
[1773174452377,0.5517414,2044.2,2043.9,0.07004956]
[1773174455176,1.22303214,2044.1,2043.9,0.07114956]
[1773174455377,0.001,2044.0,2043.9,0.07114956]
[1773174482828,2.64692913,2044.3,2044.0,0.53370005]
[1773174483120,1.79686965,2044.4,2044.0,0.53370005]
[1773174485813,0.57398568,2044.3,2043.9,1.22425181]
[1773174486113,0.57398568,2044.3,2044.0,0.53685344]
[1773174486295,1.74538818,2044.4,2044.0,0.53685344]
[1773174486689,6.48,2044.6,2044.0,0.53685344]
[1773174486891,0.95757111,2044.4,2043.9,0.0011]
[1773174487091,1.22291248,2044.3,2043.9,0.0011]
[1773174489512,4.89118921,2044.5,2043.9,0.0011]
[1773174493518,4.89118921,2044.5,2044.1,0.0011]
[1773174493820,0.001,2044.3,2044.1,0.00010587]
[1773174494822,1.22391248,2044.3,2044.1,0.00010587]
[1773174496999,0.001,2044.3,2044.1,0.00010587]
[1773174513130,1.22270488,2044.7,2044.1,0.95767698]
[1773174513522,1.22270488,2044.7,2044.1,0.00010587]
[1773174516239,1.22255367,2044.9,2044.1,0.00010587]
[1773174519340,1.22255367,2044.9,2044.3,0.0011]
[1773174520067,0.001,2044.7,2044.3,0.0011]
[1773174521072,1.22367325,2044.7,2044.3,0.0011]
[1773174522555,0.001,2044.7,2044.3,0.0011]
[1773174532286,6.48,2045.1,2044.5,0.95757111]
[1773174532490,6.48,2045.1,2044.3,0.95867111]
[1773174532786,6.48,2045.1,2044.5,0.001]
[1773174533287,6.48,2045.1,2044.6,0.95757111]
[1773174533486,0.002,2044.7,2044.6,0.95757111]
[1773174533657,6.48,2045.6,2044.6,0.95757111]
[1773174533658,0.002,2045.0,2044.6,2.36557111]
[1773174534357,1.454,2045.7,2044.8,0.95757111]
[1773174534758,1.454,2045.7,2045.0,0.95757111]
[1773174534991,1.22204887,2045.8,2045.0,0.95757111]
[1773174536705,4.88735797,2046.1,2045.1,1.22243411]
[1773174540799,6.48,2046.0,2045.1,1.22243411]
[1773174541397,1.22194024,2046.0,2045.2,0.95757111]
[1773174542292,1.56565839,2046.2,2045.3,0.95757111]
[1773174542498,0.34387971,2046.2,2045.5,0.95757111]
[1773174542701,2.14588706,2046.6,2045.8,0.95757111]
[1773174543303,2.14588706,2046.6,2045.9,1.2219561]
[1773174543473,2.14588706,2046.6,2045.8,1.22198331]
[1773174544105,2.14588706,2046.6,2045.7,1.22203656]
[1773174545000,3.10144442,2046.6,2045.5,4.88870152]
[1773174546390,0.002,2046.4,2045.5,4.88870152]
[1773174551421,0.002,2046.4,2045.6,0.95555736]
[1773174553516,0.002,2046.4,2045.7,1.22207557]
[1773174554023,0.005,2046.4,2045.7,1.22207557]
[1773174556813,0.95555736,2046.3,2045.1,0.95555736]
[1773174556979,0.95555736,2046.3,2045.0,0.95555736]
[1773174557182,0.95555736,2046.3,2045.2,0.95555736]
[1773174557791,1.22177695,2046.2,2045.3,1.22231457]
[1773174558030,1.22177695,2046.2,2044.9,0.95555736]
[1773174558031,0.95555736,2046.1,2044.9,0.95555736]
[1773174558322,1.22177695,2046.2,2045.1,0.95555736]
[1773174559096,1.22177695,2046.2,2044.9,0.95555736]
[1773174559711,0.95555736,2046.1,2044.9,0.95555736]
[1773174560215,5.84266516,2046.3,2045.0,1.22249388]
[1773174560394,5.84266516,2046.3,2045.1,0.95555736]
[1773174560804,5.84266516,2046.3,2045.1,0.95655736]
[1773174561318,4.8921078,2046.4,2045.5,0.95555736]
[1773174561514,0.005,2046.4,2045.9,0.95555736]
[1773174562289,0.005,2046.4,2046.0,1.22189638]
[1773174562692,0.005,2046.4,2045.7,1.22207557]
[1773174564428,0.005,2046.4,2045.9,0.95555736]
[1773174564992,0.005,2046.4,2045.7,0.95555736]
[1773174568196,0.005,2046.4,2045.8,1.22201583]
[1773174569325,0.005,2046.4,2045.6,4.88839301]
[1773174570824,0.96055736,2046.4,2045.5,1.22215682]
[1773174573726,1.22171724,2046.3,2045.4,4.88888504]
[1773174574226,1.22171724,2046.3,2045.4,1.22225481]
[1773174574627,0.002,2046.2,2045.4,1.22225481]
[1773174575311,0.95755736,2046.2,2045.2,1.22237433]
[1773174575828,1.22183666,2046.1,2045.1,4.89049735]
[1773174577814,0.002,2046.2,2045.2,0.95555736]
[1773174581047,0.002,2046.2,2045.3,1.22231457]
[1773174585461,0.002,2046.2,2045.4,0.95555736]
[1773174585760,0.002,2046.2,2045.3,1.22231457]
[1773174586760,0.95755736,2046.2,2045.2,2.17788602]
[1773174588651,0.95755736,2046.2,2045.5,0.001]
[1773174588857,1.22183666,2046.1,2045.5,0.001]
[1773174589165,1.22383666,2046.1,2045.5,0.001]
[1773174593074,7.70383666,2046.1,2045.5,0.001]
[1773174594059,0.95555736,2046.0,2045.5,0.001]
[1773174594639,1.22383666,2046.1,2045.5,0.001]
[1773174603139,0.002,2046.1,2045.5,0.95655736]
[1773174603339,0.002,2046.1,2045.7,0.95555736]
[1773174603546,0.002,2046.1,2045.8,2.17744019]
[1773174604351,0.002,2046.1,2045.7,0.001]
[1773174605459,1.2219561,2045.9,2045.5,0.001]
[1773174607980,0.95542436,2045.8,2045.2,0.001]
[1773174608210,12.32324878,2046.0,2045.2,0.001]
[1773174608380,5.84324878,2046.0,2045.2,0.001]
[1773174608554,4.88782442,2046.0,2045.2,0.001]
[1773174610459,4.88782442,2046.0,2045.2,0.95642436]
[1773174610859,5.84324878,2046.0,2045.2,0.001]
[1773174611266,0.95542436,2045.8,2045.2,0.001]
[1773174611878,1.22207557,2045.7,2045.2,0.001]
[1773174613786,4.88830229,2045.9,2045.2,0.001]
[1773174614079,4.88830229,2046.0,2045.2,0.001]
[1773174619693,4.88830229,2046.0,2045.4,0.001]
[1773174623271,2.66689638,2046.1,2045.4,0.001]
[1773174623473,0.002,2046.1,2045.5,1.22219506]
[1773174624576,0.002,2046.1,2045.4,1.2232192]
[1773174626969,0.002,2046.1,2045.4,0.001]
[1773174634803,0.002,2045.9,2045.4,0.001]
[1773174646907,0.002,2045.9,2045.4,1.22325481]
[1773174648815,0.002,2045.9,2045.6,0.001]
[1773174662508,0.002,2045.9,2045.7,0.001]
[1773174685629,0.002,2046.1,2045.7,0.95700359]
[1773174686006,0.002,2046.1,2045.8,1.22201583]
[1773174690787,0.002,2045.9,2045.7,1.22307557]
[1773174691519,0.002,2045.9,2045.7,0.001]
[1773174691730,0.002,2045.9,2045.4,0.001]
[1773174691931,0.002,2045.9,2045.4,1.2232429]
[1773174692537,0.002,2045.9,2045.4,0.004]
[1773174695026,0.002,2046.1,2045.6,0.95600359]
[1773174695245,0.002,2046.1,2045.7,0.002]
[1773174695957,0.002,2046.1,2045.8,0.003]
[1773174696262,0.002,2046.1,2045.4,0.95700359]
[1773174696560,0.002,2046.1,2045.6,0.95600359]
[1773174697137,0.002,2046.1,2045.7,1.22207557]
[1773174700653,0.002,2046.1,2045.7,0.003]
[1773174703666,0.002,2045.9,2045.7,0.003]
[1773174703864,0.002,2045.9,2045.6,0.001]
[1773174704058,0.002,2045.9,2045.6,0.004]
[1773174704565,0.002,2046.1,2045.7,0.003]
[1773174706275,0.002,2046.1,2045.6,0.001]
[1773174706476,0.002,2046.1,2045.6,0.004]
[1773174709582,1.22383666,2046.1,2045.6,0.002]
[1773174711467,1.22383666,2046.1,2045.6,0.004]
[1773174712170,1.22383666,2046.1,2045.6,0.003]
[1773174714587,1.22383666,2046.1,2045.6,0.004]
[1773174715676,1.22383666,2046.1,2045.8,0.001]
[1773174716392,0.002,2045.9,2045.8,0.001]
[1773174717086,0.002,2045.9,2045.4,0.001]
[1773174717263,0.002,2045.9,2045.5,0.001]
[1773174724623,0.95600359,2045.8,2045.5,0.001]
[1773174724935,0.002,2045.9,2045.5,0.001]
[1773174726491,4.88543651,2047.0,2046.6,1.13649115]
[1773174726688,1.13649115,2046.6,2046.2,0.95616846]
[1773174726929,0.35829817,2047.1,2046.4,0.95616846]
[1773174727099,0.42591642,2047.0,2046.6,0.95616846]
[1773174727309,0.003,2047.5,2046.8,0.95616846]
[1773174727496,1.433,2047.6,2047.2,0.95616846]
[1773174728217,2.37616846,2048.3,2047.0,0.95616846]
[1773174728715,1.22058392,2048.2,2047.1,1.2212398]
[1773174729297,0.95616846,2047.9,2046.8,0.95616846]
[1773174729503,0.95616846,2048.1,2046.8,0.95616846]
[1773174729833,0.002,2048.1,2046.8,0.95616846]
[1773174730241,0.95816846,2048.1,2046.8,0.95616846]
[1773174730594,0.002,2048.1,2046.9,1.22135912]
[1773174731228,0.95816846,2048.1,2046.9,1.22135912]
[1773174731834,0.95616846,2047.7,2046.5,4.88634998]
[1773174731989,1.421,2047.6,2046.6,0.95616846]
[1773174733332,1.22100122,2047.5,2046.7,1.22147847]
[1773174735518,1.22100122,2047.5,2046.5,4.88615264]
[1773174735718,1.22100122,2047.5,2046.6,0.95616846]
[1773174736323,1.424,2047.6,2046.8,0.95616846]
[1773174736532,2.64497997,2047.6,2046.8,0.95616846]
[1773174737510,2.6449641,2047.6,2046.9,1.22135912]
[1773174737925,2.64494163,2047.6,2046.9,1.22135912]
[1773174739903,2.64494163,2047.6,2046.5,1.22159784]
[1773174740113,2.64494163,2047.6,2046.5,2.1777663]
[1773174742741,0.95616846,2047.5,2047.1,0.001]
[1773174743210,2.64494163,2047.6,2047.1,0.001]
[1773174744740,2.64494163,2047.6,2046.3,5.84255985]
[1773174744741,0.95616846,2047.0,2046.2,1.22177695]
[1773174745033,0.95616846,2046.7,2045.8,1.22201583]
[1773174745831,1.425,2046.9,2045.9,0.95616846]
[1773174745832,2.38116846,2046.9,2045.9,0.95616846]
[1773174746834,1.2214188,2046.8,2045.7,0.95716846]
[1773174748541,2.64641067,2046.9,2046.1,0.95616846]
[1773174748853,2.64841067,2046.9,2046.2,1.22177695]
[1773174750902,0.067536,2047.7,2046.3,0.95616846]
[1773174751149,0.067536,2047.7,2046.2,1.22177695]
[1773174751150,0.95616846,2047.0,2046.2,1.22177695]
[1773174751323,2.38416846,2047.2,2046.2,1.22177695]
[1773174753250,1.2212398,2047.1,2046.1,4.8871078]
[1773174755965,1.2212398,2047.1,2046.2,0.95616846]
[1773174756131,1.427,2047.0,2046.2,0.95616846]
[1773174756329,1.427,2047.0,2046.1,4.8871078]
[1773174757664,2.6483307,2047.0,2046.3,0.001]
[1773174757962,0.002,2046.9,2046.3,0.001]
[1773174759041,4.88702329,2047.1,2046.3,0.001]
[1773174759042,0.002,2047.1,2046.7,0.95616846]
[1773174759370,1.22104427,2047.5,2046.7,0.95616846]